fUSD/lending_fUSD_20250405
["ID","MTS","AMOUNT","RATE_DAILY","PERIOD"]
[357159952,1743820131759,296.31773,0.0002,23]
[357159953,1743820131807,296.31774,0.00025,23]
[357159954,1743820133221,-401.16981354,0.000151,2]
[357159959,1743820133868,-162.70196803,0.000151,2]
[357159961,1743820158111,-332.52527071,0.000151,2]
[357159964,1743820158867,-179.27747819,0.000151,2]
[357159965,1743820174095,-674.82753482,0.000151,2]
[357159966,1743820174118,-1562.98276316,0.00017,2]
[357159967,1743820174140,-463.63166181,0.00018,2]
[357159968,1743820174522,258.38578,0.0002,23]
[357159969,1743820174569,258.38579,0.00025,23]
[357159973,1743820199746,-212.70196803,0.000181,2]
[357159977,1743820215010,-56.49546417,0.000181,2]
[357159978,1743820215041,-93.50453583,0.00018188,2]
[357159979,1743820217339,197.54515,0.0002,23]
[357159980,1743820217436,197.54516,0.00025,23]
[357159994,1743820232193,-156.49546417,0.00018188,2]
[357159995,1743820232202,-435.66990837,0.00018276,2]
[357159996,1743820232212,-435.66990837,0.00018582,2]
[357159997,1743820232221,-25.2096915,0.00018722,2]
[357159998,1743820232458,-308.55311652,0.00018722,2]
[357159999,1743820232467,-200.0,0.00018786,2]
[357160000,1743820232476,-2137.78879492,0.00018794,2]
[357160001,1743820232490,-614.28280508,0.00018794,2]
[357160002,1743820232499,-151.56,0.00018823,2]
[357160003,1743820232508,-402.53388388,0.00018894,2]
[357160029,1743820232812,-150.0,0.00018894,2]
[357160143,1743820238070,-1655.02,0.00018894,2]
[357160144,1743820238130,-21692.44611612,0.00018894,2]
[357160145,1743820238140,-435.66990837,0.00018904,2]
[357160146,1743820238150,-435.66990837,0.00018949,2]
[357160147,1743820238159,-160.77408796,0.00019,2]
[357160148,1743820238169,-150.0,0.00019009,2]
[357160149,1743820238179,-250.0,0.00019176,2]
[357160150,1743820238189,-895.33,0.0001923,2]
[357160151,1743820238199,-435.66990837,0.00019259,2]
[357160152,1743820238209,-150.0,0.00019261,7]
[357160153,1743820238218,-893.0534142,0.00019399,2]
[357160154,1743820238227,-168.94,0.00019421,2]
[357160155,1743820238237,-435.66990837,0.00019661,2]
[357160156,1743820238246,-799.7218,0.000197,2]
[357160157,1743820238255,-818.677,0.000197,2]
[357160158,1743820238264,-1243.0,0.000197,2]
[357160159,1743820238273,-153.0,0.00019799,2]
[357160160,1743820238282,-9678.4701,0.000198,2]
[357160161,1743820238291,-500.0,0.000198,2]
[357160162,1743820238301,-290.4082,0.000198,2]
[357160163,1743820238310,-3572.118,0.000198,2]
[357160164,1743820238320,-1000.0,0.00019899,2]
[357160165,1743820238329,-223.0,0.000199,2]
[357160166,1743820238338,-299.1995,0.000199,2]
[357160167,1743820238347,-158.9648,0.000199,2]
[357160168,1743820238357,-2781.71320035,0.000199,2]
[357160169,1743820238382,-849.7,0.000199,2]
[357160389,1743820240355,-500.0,0.000199,2]
[357160411,1743820240568,-472.71729096,0.000199,2]
[357160414,1743820240580,-451.9737682,0.000199,2]
[357160416,1743820240591,-1614.93714049,0.000199,2]
[357160418,1743820240601,-253.198,0.000199,2]
[357160420,1743820240610,-2945.5368,0.000199,2]
[357160421,1743820240619,-966.8065815,0.000199,2]
[357160423,1743820240632,-268.5571,0.000199,2]
[357160424,1743820240642,-158.78601547,0.000199,2]
[357160425,1743820240655,-3294.85084049,0.000199,2]
[357160427,1743820240671,-2939.6759444,0.000199,2]
[357160429,1743820240680,-638.4659,0.000199,2]
[357160431,1743820240691,-1148.0181556,0.000199,2]
[357160433,1743820240703,-4953.5652444,0.000199,2]
[357160435,1743820240712,-250.0,0.0001991,2]
[357160437,1743820240721,-435.66990839,0.00019941,2]
[357160439,1743820240732,-395.93356146,0.0001995,2]
[357160441,1743820240742,-501.05478218,0.00019973,2]
[357160443,1743820240751,-402.35961496,0.00019973,2]
[357160445,1743820240760,-473.5708162,0.00019973,2]
[357160447,1743820240769,-500.0,0.00019973,2]
[357160449,1743820240778,-1905.3285272,0.0001999,2]
[357160452,1743820240788,-5136.8026976,0.0002,2]
[357160454,1743820240800,-1259.95825714,0.0002,2]
[357160537,1743820244103,-316.53378625,0.0002,2]
[357160538,1743820244115,-592.03659899,0.0002,2]
[357160539,1743820244127,-309.245458,0.0002,2]
[357160540,1743820244139,-466.58244578,0.0002,2]
[357160541,1743820244150,-517.92731641,0.0002,2]
[357160544,1743820246390,-268.987887,0.0002,2]
[357160545,1743820246403,-318.8803487,0.0002,2]
[357160546,1743820246447,-1826.41066321,0.0002,2]
[357160547,1743820246611,-267.27748601,0.0002,2]
[357160548,1743820260113,172.25719,0.0002,23]
[357160549,1743820260165,172.25719,0.00025,23]
[357160550,1743820297929,-150.0,0.00018397,2]
[357160551,1743820302914,246.5349,0.0002,23]
[357160552,1743820302969,246.5349,0.00025,23]
[357160553,1743820323712,-150.0,0.00018397,2]
[357160554,1743820608482,246.5349,0.000248,34]
[357160555,1743820608550,246.53491,0.000273,39]
[357160556,1743820608602,246.5349,0.000298,44]
[357160557,1743820683830,-150.0,0.00018397,2]
[357160558,1743820849046,258.36,0.00015813,2]
[357160559,1743820913607,246.5349,0.0002595,36]
[357160560,1743821219125,-400.96528263,0.00018397,2]
[357160561,1743821252294,-303.0,0.00018397,2]
[357160562,1743821365489,570.1910872,0.00016899,2]
[357160563,1743821366874,-213.27747819,0.00016899,2]
[357160570,1743821432310,-697.00991995,0.00016899,2]
[357160571,1743821432364,-324.99151466,0.00016899,2]
[357160572,1743821432373,-250.0,0.00017711,2]
[357160573,1743821432383,-250.0,0.00018391,2]
[357160574,1743821432392,-250.0,0.00018589,2]
[357160575,1743821432401,-273.44200643,0.00018768,2]
[357160576,1743821432410,-150.0,0.00018817,7]
[357160577,1743821432419,-273.44200641,0.00018948,2]
[357160578,1743821432428,-1904.10163959,0.00018972,2]
[357160579,1743821432437,-695.05,0.00019048,2]
[357160580,1743821432447,-500.0,0.00019096,2]
[357160581,1743821432456,-23900.0,0.00019099,2]
[357160582,1743821432465,-1805.47,0.00019163,2]
[357160583,1743821432474,-200.0,0.00019175,2]
[357160584,1743821432483,-744.7900607,0.00019399,2]
[357160585,1743821432492,-166.25,0.00019427,2]
[357160586,1743821432501,-447.66,0.00019444,2]
[357160587,1743821432510,-1000.0,0.00019511,2]
[357160588,1743821432519,-250.0,0.00019514,2]
[357160589,1743821432528,-435.35489824,0.0001974,2]
[357160590,1743821432538,-792.565,0.00019808,2]
[357160591,1743821432547,-1752.80803975,0.00019878,2]
[357160592,1743821432556,-1655.02,0.000199,2]
[357160593,1743821432565,-22732.8641,0.000199,2]
[357160594,1743821432574,-5611.07410641,0.000199,2]
[357160595,1743821432583,-169.01492724,0.000199,2]
[357160596,1743821432591,-870.12592335,0.000199,2]
[357160597,1743821432600,-205.0,0.00019973,2]
[357160598,1743821432610,-1141.73078038,0.00019999,2]
[357160599,1743821432619,-404718.48625741,0.0002,2]
[357160600,1743821432632,-15921.09077624,0.0002,2]
[357160601,1743821432654,-1000.09,0.0002,2]
[357160602,1743821432665,-3095.0618137,0.0002,2]
[357160604,1743821432697,-692.5527292,0.0002,2]
[357160611,1743821438267,-740.75,0.0002,2]
[357160612,1743821438320,-663.85289851,0.0002,2]
[357160613,1743821438377,-910.24502284,0.0002,2]
[357160614,1743821438390,-458.84855654,0.0002,2]
[357160622,1743821440515,-293.22318818,0.0002,2]
[357160623,1743821440673,-656.14,0.0002,2]
[357160624,1743821440734,-3330.14103743,0.0002,2]
[357160634,1743821444289,-10487.88572189,0.0002,2]
[357160641,1743821446395,-21050.83958703,0.0002,2]
[357160643,1743821452627,-151.16351891,0.00017114,2]
[357160662,1743822113602,-150.0,0.00016712,2]
[357160663,1743822356308,250.0,0.00016159,2]
[357160664,1743822382319,-1.16,0.00016712,2]
[357160665,1743822382342,-250.0,0.00017191,2]
[357160666,1743822382368,-48.84,0.00018066,2]
[357160667,1743822406173,-290.09204914,0.00018066,2]
[357160668,1743822435189,-153.90742366,0.00016969,2]
[357160669,1743822558079,-1471.01257634,0.00016969,2]
[357160670,1743822558102,-1194.57242505,0.00017967,2]
[357160671,1743822587016,-239.87194988,0.00017876,2]
[357160672,1743822600995,-303.0,0.00017876,2]
[357160673,1743822602034,-152.47720977,0.00017876,2]
[357160677,1743822631465,-598.12628946,0.00017876,2]
[357160678,1743822631474,-101.87371054,0.00017876,2]
[357160679,1743822631485,-104.21051328,0.00017876,2]
[357160680,1743822631494,-250.0,0.00017922,2]
[357160681,1743822631503,-468.50847781,0.00017967,2]
[357160682,1743822631623,-308.79,0.00017967,2]
[357160683,1743822631730,-1085.37996114,0.00017967,2]
[357160684,1743822631740,-233.95185403,0.00017976,2]
[357160685,1743822631750,-1293.4754491,0.00018058,2]
[357160686,1743822631759,-300.0,0.00018458,2]
[357160687,1743822631769,-420.73,0.00018537,2]
[357160688,1743822631778,-150.5,0.00018568,2]
[357160689,1743822631787,-150.0,0.00018618,7]
[357160690,1743822631797,-1000.0,0.00018664,2]
[357160691,1743822631806,-250.0,0.00018666,2]
[357160692,1743822631816,-250.0,0.00018854,2]
[357160693,1743822631825,-300.0,0.00018883,2]
[357160694,1743822631834,-12011.38273693,0.00018884,2]
[357160695,1743822631866,-1716.35675238,0.00018884,2]
[357160696,1743822631877,-3914.4932,0.00018884,2]
[357160823,1743822637432,-265.71883021,0.00018884,2]
[357160824,1743822637487,-5992.04848048,0.00018884,2]
[357160825,1743822637497,-851.1,0.00018995,2]
[357160826,1743822637506,-151.56,0.00019074,2]
[357160827,1743822637515,-1624.92,0.00019233,2]
[357160828,1743822637525,-388.29320956,0.000193,2]
[357160829,1743822637534,-999.99,0.00019339,2]
[357160830,1743822637544,-459.2,0.00019339,2]
[357160831,1743822637553,-9999.99,0.00019339,2]
[357160832,1743822637562,-9999.99,0.00019339,2]
[357160833,1743822637571,-500.0,0.00019373,2]
[357160834,1743822637580,-9999.99,0.00019399,2]
[357160835,1743822637589,-150.99,0.00019399,2]
[357160836,1743822637599,-1001.15,0.00019399,2]
[357160837,1743822637608,-150.99,0.00019399,2]
[357160838,1743822637617,-9999.99,0.00019399,2]
[357160839,1743822637627,-18522.59,0.00019399,2]
[357160840,1743822637636,-299.99,0.00019399,7]
[357160841,1743822637646,-558.5925455,0.00019399,2]
[357160842,1743822637655,-162.12,0.00019452,2]
[357160843,1743822637667,-388.29320956,0.00019553,2]
[357160844,1743822637676,-250.0,0.00019664,2]
[357160845,1743822637686,-727.8157,0.000198,2]
[357160846,1743822637695,-4213.06791691,0.0001981,2]
[357160847,1743822637704,-5517.78000812,0.00019818,2]
[357160848,1743822637714,-10677.12017343,0.000199,2]
[357160849,1743822637726,-3774.53643325,0.000199,2]
[357160850,1743822637744,-472.560984,0.000199,2]
[357160852,1743822637755,-963.26438089,0.000199,2]
[357160876,1743822639574,-3731.55159987,0.000199,2]
[357160877,1743822639627,-53791.07,0.000199,2]
[357160878,1743822639685,-2604.8750154,0.000199,2]
[357160879,1743822639892,-1995.48288896,0.000199,2]
[357160880,1743822639946,-2612.30408965,0.000199,2]
[357160887,1743822642499,-1060.68980304,0.000199,2]
[357160890,1743822643526,-869.30755836,0.000199,2]
[357160891,1743822643537,-1759.35999998,0.000199,2]
[357160896,1743822645521,-533.2882915,0.000199,2]
[357160897,1743822645575,-326.88027612,0.000199,2]
[357160898,1743822645631,-5114.4360655,0.000199,2]
[357160899,1743822645686,-303.03090658,0.000199,2]
[357160900,1743822645847,-1436.74816541,0.000199,2]
[357160901,1743822821164,150.0,0.00015577,2]
[357160902,1743823537334,-224.6051,0.00017225,2]
[357160904,1743823759539,-855.50548191,0.00017225,2]
[357160908,1743823760202,-150.0,0.00017225,2]
[357160911,1743823784458,-210.57361796,0.00017225,2]
[357160929,1743823831604,-36.89580013,0.00017225,2]
[357160931,1743823831614,-151.02722859,0.00018,2]
[357160933,1743823831624,-223.357964,0.00018765,2]
[357160935,1743823831633,-36.62569168,0.0001886,2]
[357160936,1743823831645,-162.99936517,0.0001886,2]
[357160937,1743823831654,-225.35966863,0.0001886,2]
[357160938,1743823831663,-1000.0,0.00018901,2]
[357160939,1743823831672,-150.0,0.0001896,7]
[357160940,1743823831682,-926.62045306,0.000191,2]
[357160941,1743823831714,-529.17,0.000191,2]
[357160942,1743823831773,-1579.13148732,0.000191,2]
[357160943,1743823831882,-5950.07805962,0.000191,2]
[357160944,1743823831891,-250.0,0.00019171,2]
[357160945,1743823831900,-23900.0,0.00019204,2]
[357160946,1743823831910,-155.79,0.00019285,2]
[357160947,1743823831919,-200.0,0.00019347,2]
[357160948,1743823831928,-168.94,0.00019375,2]
[357160949,1743823831937,-150.0,0.00019398,2]
[357160950,1743823831946,-999.99,0.00019399,2]
[357160951,1743823831956,-1272.79,0.00019399,2]
[357160952,1743823831965,-150.99,0.00019399,2]
[357160953,1743823831974,-150.99,0.00019399,2]
[357160954,1743823831983,-1789.64,0.00019399,2]
[357160955,1743823831992,-152.47720977,0.00019399,10]
[357160957,1743823832001,-418.9444091,0.00019399,2]
[357160959,1743823832010,-388.29320956,0.00019468,2]
[357160960,1743823832020,-1414.71637079,0.00019489,2]
[357160961,1743823832031,-62.86362921,0.00019489,2]
[357160962,1743823832040,-468.28488447,0.00019489,2]
[357160966,1743823834264,-173.45243632,0.000194,3]
[357160969,1743823837711,-1378.64863775,0.000194,3]
[357160970,1743823837767,-458.96776077,0.000194,3]
[357160971,1743823839887,-500.0,0.000194,3]
[357160972,1743823839996,-984.97315811,0.000194,3]
[357160973,1743823840008,-2058.95800705,0.000194,3]
[357160974,1743823840017,-217.49511553,0.00019489,2]
[357160975,1743823840027,-1212.3770787,0.00019489,2]
[357160983,1743823843007,-211.30743083,0.00019489,2]
[357160987,1743823845906,-363.10995231,0.00019489,2]
[357160988,1743823846016,-2774.43553816,0.00019489,2]
[357160989,1743823846026,-500.0,0.00019562,2]
[357160990,1743823846036,-250.0,0.0001965,2]
[357160991,1743823846046,-1155.5,0.00019654,2]
[357160992,1743823846055,-199.62505685,0.00019735,2]
[357160993,1743823846065,-250.0,0.00019835,2]
[357160994,1743823846074,-1074.608,0.00019899,2]
[357160995,1743823846083,-2961.0026,0.000199,2]
[357160996,1743823846093,-968.6679,0.000199,2]
[357160997,1743823846102,-503.0,0.00019973,2]
[357160998,1743823846111,-500.0,0.00019973,2]
[357160999,1743823846121,-1814.8329032,0.00019996,2]
[357161000,1743824179982,-150.0,0.000188,5]
[357161001,1743824369533,-150.0,0.000182,5]
[357161002,1743824429234,-150.0,0.000181,5]
[357161003,1743824491504,-150.0,0.000179,5]
[357161004,1743824557065,-212.70196803,0.000177,5]
[357161005,1743824776576,-253.56356951,0.000169,5]
[357161006,1743824807553,-218.07581265,0.000169,5]
[357161007,1743824839351,-150.0,0.000167,5]
[357161008,1743824901782,-263.44608735,0.000166,5]
[357161009,1743824934272,-150.0,0.000166,5]
[357161014,1743825031795,-640.94583437,0.000164,5]
[357161015,1743825031807,-3066.05416563,0.000164,5]
[357161016,1743825031816,-210.36,0.00019143,2]
[357161017,1743825031826,-150.0,0.00019191,7]
[357161018,1743825031836,-1000.0,0.00019283,2]
[357161019,1743825031845,-250.0,0.0001929,2]
[357161020,1743825031854,-314.2083068,0.00019399,2]
[357161021,1743825031863,-150.0,0.00019496,2]
[357161022,1743825031872,-958.786,0.000196,2]
[357161023,1743825031882,-151.56,0.00019775,2]
[357161024,1743825031891,-166.25,0.00019846,2]
[357161025,1743825031900,-1604.93908348,0.0001989,2]
[357161026,1743825031910,-395.73216222,0.000199,2]
[357161027,1743825031921,-684.22367525,0.000199,2]
[357161028,1743825031940,-1522.8288908,0.000199,2]
[357161029,1743825031951,-435.31132399,0.000199,2]
[357161030,1743825031962,-504.35,0.000199,2]
[357161031,1743825031973,-2240.37473198,0.000199,2]
[357161038,1743825037674,-596.76792635,0.00019043,2]
[357161039,1743825037890,-311.67730095,0.00019043,2]
[357161040,1743825037900,-725.46549183,0.000199,2]
[357161041,1743825037911,-418.035,0.000199,2]
[357161045,1743825039987,-715.56987236,0.000199,2]
[357161046,1743825040046,-1385.23952878,0.000199,2]
[357161047,1743825040058,-1885.59736475,0.000199,2]
[357161048,1743825040099,-3924.09701614,0.000199,2]
[357161076,1743825045864,-1206.11241736,0.000199,2]
[357161077,1743825046135,-1922.49977101,0.000199,2]
[357161078,1743825059986,-150.0,0.000164,5]
[357161079,1743825089975,-151.16351891,0.000162,5]
[357161080,1743825123817,-158.0,0.000162,5]
[357161081,1743825234715,300.84707566,0.00035917,120]
[357161085,1743826231997,-150.0,0.00016712,2]
[357161086,1743826232008,-469.41313121,0.00017473,2]
[357161087,1743826232066,-494.28803942,0.00017473,2]
[357161089,1743826238059,-535.34882937,0.00017473,2]
[357161090,1743826238071,-250.0,0.00018384,2]
[357161091,1743826238081,-250.0,0.00018384,2]
[357161092,1743826238090,-218.52617063,0.00018384,2]
[357161093,1743826238101,-31.47382937,0.00018384,2]
[357161094,1743826238111,-185.81005793,0.0001922,2]
[357161095,1743826238120,-70.67471536,0.00019278,2]
[357161096,1743826238137,-179.32528464,0.00019278,2]
[357161097,1743826238147,-289.32655219,0.0001929,2]
[357161121,1743826240201,-250.0,0.00019221,2]
[357161122,1743826240211,-710.67344781,0.0001929,2]
[357161123,1743826240221,-200.0,0.0001932,2]
[357161124,1743826240230,-273.1562301,0.00019399,2]
[357161125,1743826240239,-7662.81405323,0.00019482,2]
[357161126,1743826240251,-8947.21879473,0.00019482,2]
[357161127,1743826240391,-7289.96715204,0.00019482,2]
[357161128,1743826240404,-1499.05,0.00019737,2]
[357161129,1743826240414,-154.76671258,0.000198,2]
[357161130,1743826240426,-429.18618322,0.000198,2]
[357161131,1743826240436,-203.0406,0.000199,2]
[357161132,1743826240447,-177.72685046,0.000199,2]
[357161133,1743826240456,-623.00030397,0.000199,2]
[357161134,1743826240466,-7644.59472387,0.000199,2]
[357161135,1743826240478,-8943.84023489,0.000199,2]
[357161136,1743826240518,-4338.10210443,0.000199,2]
[357161145,1743826245980,-8969.90115002,0.000199,2]
[357161146,1743826245992,-3986.50608536,0.000199,2]
[357161147,1743826246151,-11382.66110143,0.000199,2]
[357161148,1743826246161,-6312.36925266,0.000199,2]
[357161149,1743826246170,-183.67818449,0.000199,2]
[357161150,1743826246180,-162.12,0.00019928,2]
[357161151,1743826246189,-251.31500577,0.00019973,2]
[357161152,1743826246199,-500.0,0.00019973,2]
[357161153,1743826246208,-846.307,0.0001999,2]
[357161154,1743826246217,-20624.29721383,0.00019995,2]
[357161155,1743826246227,-17726.9443756,0.00019996,2]
[357161156,1743826246236,-6473.3492406,0.00019996,2]
[357161157,1743826246245,-151.0,0.00019996,2]
[357161158,1743826246255,-151.0,0.00019996,2]
[357161159,1743826246264,-151.0,0.00019996,2]
[357161160,1743826246273,-151.0,0.00019996,2]
[357161161,1743826246283,-152.77336,0.00019996,2]
[357161162,1743826246292,-235.995589,0.00019996,2]
[357161163,1743826246302,-226.430396,0.00019996,2]
[357161164,1743826246312,-200.826477,0.00019996,2]
[357161165,1743826246321,-151.0,0.00019996,2]
[357161166,1743826246331,-151.0,0.00019996,2]
[357161167,1743826246341,-151.0,0.00019996,2]
[357161168,1743826246350,-203.494944,0.00019996,2]
[357161169,1743826246360,-203.494944,0.00019996,2]
[357161170,1743826246370,-151.0,0.00019996,7]
[357161171,1743826246379,-151.0,0.00019996,7]
[357161172,1743826246388,-151.911542,0.00019996,2]
[357161173,1743826246398,-151.0,0.00019996,2]
[357161174,1743826246413,-151.0,0.00019996,2]
[357161175,1743826246422,-151.0,0.00019996,2]
[357161176,1743826246432,-151.0,0.00019996,2]
[357161177,1743826246443,-227.732219,0.00019996,2]
[357161178,1743826246452,-227.732219,0.00019996,2]
[357161179,1743826246462,-151.0,0.00019996,2]
[357161180,1743826246471,-237.889298,0.00019996,2]
[357161181,1743826246481,-373.8054887,0.00019999,2]
[357161182,1743826246491,-708.97681393,0.00019999,2]
[357161183,1743826246501,-248.39723561,0.00019999,2]
[357161184,1743826246512,-151.0,0.00019999,2]
[357161185,1743826246521,-151.0,0.00019999,2]
[357161186,1743826246532,-151.0,0.00019999,2]
[357161187,1743826246541,-203.494944,0.00019999,2]
[357161188,1743826246551,-203.494944,0.00019999,2]
[357161189,1743826246561,-151.0,0.00019999,2]
[357161190,1743826246570,-151.0,0.00019999,2]
[357161191,1743826246580,-151.0,0.00019999,2]
[357161193,1743826246589,-497.895255,0.00019999,2]
[357161195,1743826246599,-497.895255,0.00019999,2]
[357161196,1743826246608,-151.0,0.00019999,2]
[357161197,1743826246618,-272.416137,0.00019999,2]
[357161198,1743826246628,-153.448457,0.00019999,2]
[357161199,1743826246638,-164.346108,0.00019999,2]
[357161201,1743826246647,-164.346108,0.00019999,2]
[357161202,1743826246656,-151.0,0.00019999,2]
[357161203,1743826246665,-155.920411,0.00019999,2]
[357161204,1743826246674,-151.0,0.00019999,2]
[357161205,1743826246683,-152.699295,0.00019999,2]
[357161206,1743826246693,-157.339461,0.00019999,2]
[357161207,1743826246702,-532.554832,0.00019999,2]
[357161208,1743826246801,-532.554832,0.00019999,2]
[357161209,1743826246833,-151.0,0.00019999,2]
[357161210,1743826246843,-151.0,0.00019999,2]
[357161211,1743826246852,-151.0,0.00019999,2]
[357161212,1743826246862,-227.450368,0.00019999,2]
[357161213,1743826246872,-151.0,0.00019999,2]
[357161214,1743826246882,-153.542856,0.00019999,2]
[357161215,1743826246891,-1139.523516,0.00019999,2]
[357161216,1743826246900,-151.0,0.00019999,2]
[357161217,1743826246909,-1139.523516,0.00019999,2]
[357161218,1743826246919,-151.0,0.00019999,2]
[357161219,1743826246927,-151.0,0.00019999,2]
[357161220,1743826246937,-158.638426,0.00019999,2]
[357161221,1743826246946,-1576.53139,0.00019999,2]
[357161222,1743826246955,-1576.53139,0.00019999,2]
[357161223,1743826246964,-151.791756,0.00019999,2]
[357161224,1743826246974,-151.970674,0.00019999,2]
[357161225,1743826246983,-151.0,0.00019999,2]
[357161226,1743826246993,-151.0,0.00019999,2]
[357161227,1743826247002,-151.0,0.00019999,2]
[357161228,1743826247011,-151.0,0.00019999,2]
[357161229,1743826247020,-151.0,0.00019999,2]
[357161230,1743826247030,-151.0,0.00019999,2]
[357161231,1743826247039,-151.0,0.00019999,2]
[357161232,1743826247047,-151.0,0.00019999,2]
[357161233,1743826247056,-151.0,0.00019999,2]
[357161234,1743826247066,-151.0,0.00019999,2]
[357161235,1743826247075,-151.0,0.00019999,2]
[357161236,1743826247084,-151.0,0.00019999,2]
[357161237,1743826247093,-151.0,0.00019999,2]
[357161238,1743826247103,-227.732219,0.00019999,2]
[357161239,1743826247112,-227.732219,0.00019999,2]
[357161240,1743826247121,-151.0,0.00019999,2]
[357161241,1743826247130,-3447.28620791,0.0002,2]
[357161242,1743826247139,-300.11433564,0.0002,2]
[357161243,1743826247148,-8027.89927503,0.0002,2]
[357161244,1743826247157,-698121.50790678,0.0002,2]
[357161245,1743826247166,-235270.32595474,0.0002,2]
[357161246,1743826247186,-3795.79867638,0.0002,2]
[357161247,1743826854916,2428.79633477,0.00013699,2]
[357161248,1743826854986,900.56366523,0.00013699,2]
[357161249,1743826855245,3329.36,0.00013699,2]
[357161250,1743826855627,2798.99912335,0.00013699,2]
[357161251,1743826855659,530.36087665,0.00013699,2]
[357161252,1743826855997,1228.25420605,0.00013699,2]
[357161253,1743826856026,2101.10579395,0.00013699,2]
[357161254,1743826856324,2114.49330605,0.00013699,2]
[357161255,1743826856352,1214.86669395,0.00013699,2]
[357161256,1743826856643,3329.36,0.00013699,2]
[357161257,1743826857101,1859.54454282,0.00013699,2]
[357161258,1743826857131,1469.81545718,0.00013699,2]
[357161259,1743826857450,3280.68493085,0.00013699,2]
[357161260,1743826857482,48.67506915,0.00013699,2]
[357161261,1743826857822,239.87194988,0.00013699,2]
[357161262,1743826857851,3089.48805012,0.00013699,2]
[357161263,1743826858150,2792.32568318,0.00013699,2]
[357161264,1743826858180,537.03431682,0.00013699,2]
[357161265,1743826858457,3329.36,0.00013699,2]
[357161266,1743826858784,359.35682541,0.00013699,2]
[357161267,1743826858811,2970.00317459,0.00013699,2]
[357161268,1743826859095,1888.20122334,0.00013699,2]
[357161269,1743826859122,1441.15877666,0.00013699,2]
[357161270,1743826859490,3329.36,0.00013699,2]
[357161271,1743826859819,3329.36,0.00013699,2]
[357161272,1743826860134,3329.36,0.00013699,2]
[357161273,1743826860676,3329.36,0.00013699,2]
[357161274,1743826861023,3329.36,0.00013699,2]
[357161275,1743826861371,3329.36,0.00013699,2]
[357161276,1743826861751,3329.52344836,0.00013699,2]
[357161277,1743826868479,692.596821,7.945e-05,2]
[357161278,1743826966444,7045.9799,0.0001501,2]
[357161279,1743826995399,200.0,0.00014935,2]
[357161280,1743827119798,-151.86141639,0.000154,2]
[357161281,1743827119821,-0.61579338,0.00016857,2]
[357161282,1743827119852,463.84383389,9e-05,2]
[357161283,1743827128152,845.83161314,0.00011,2]
[357161284,1743827137232,1869.04046924,8e-05,2]
[357161285,1743827229946,-156.62740908,0.000153,2]
[357161286,1743827234839,-150.02331587,0.000153,2]
[357161287,1743827235329,1706.43530804,0.00015,2]
[357161288,1743827242048,5144.59435623,0.0001305,2]
[357161290,1743827274337,4260.548107,0.00013,2]
[357161291,1743827281582,258434.00585677,0.00015,2]
[357161292,1743827282197,-224.6051,0.000153,2]
[357161293,1743827296469,-150.0,0.000153,2]
[357161294,1743827298927,1000.0,0.000135,2]
[357161295,1743827299080,296.04249743,0.000125,2]
[357161296,1743827313348,-60.83417505,0.000153,2]
[357161298,1743827313379,-250.0,0.0001683,2]
[357161300,1743827313410,-783.51988301,0.00016857,2]
[357161305,1743827313765,1680.53674294,9.828e-05,2]
[357161306,1743827314103,-250.0,0.00016857,2]
[357161307,1743827316730,3237.00416082,0.000149,2]